Workbook

Sheet Summary
B1: Tender number: TNPA/2023/10/0005/44110/RFP Tender Description: Security Fencing Upgrade at the Port of East London
A4: ITEM NO. | B4: TRADE | E4: AMOUNT
B7: SUMMARY
B9: SECTION 1 - PRELIMINARIES
B11: PRELIMINARIES AND GENERALS
B13: SECTION 2 - SECURITY FENCING
B15: PERIMETER FENCE
B52: Total Carried Forward to Form of Offer
F209: 1
F211: 2
F213: 3
F215: 4
F221: 8
F223: 9
F225: 10
F227: 11

Sheet P&G
B2: Tender number: TNPA/2023/10/0005/44110/RFP Tender Description: Security Fencing Upgrade at the Port of East London
B6: Item No | C6: Payment Reference | D6: Description | E6: Unit | F6: Qty | G6: Rate | H6: Amount
C7: SANS 1200 | D7: SECTION 1: PRELIMINARIES AND GENERALS
D9: FIXED CHARGED AND VALUE RELATED ITEMS
D11: Contractual requirements:
B13: 1.1.1 | C13: A 8.3.1 | D13: Contractual requirements. | E13: Sum | F13: 1
D15: Establishment of facilities for engineer:
B17: 1.1.2 | C17: A 8.3.2.1 | D17: (a) Furnished offices . | E17: Sum | F17: 1
B19: 1.1.3 | C19: A 8.3.2.1 | D19: (b) Telephone. | E19: Sum | F19: 1
B21: 1.1.4 | C21: A 8.3.2.1 | D21: (c) Nameboards. | E21: Sum | F21: 1
D23: Establishment of facilities for contractor:
B25: 1.1.5 | C25: A 8.3.2.2 | D25: (a) Offices and storage sheds. | E25: Sum | F25: 1
B27: 1.1.9 | C27: A 8.3.2.2 | D27: (b) Ablution and latrine facilities. | E27: Sum | F27: 1
B29: 1.1.10 | C29: A 8.3.2.2 | D29: (c) Tools and equipment. | E29: Sum | F29: 1
B31: 1.1.11 | C31: A 8.3.2.2 | D31: (d) Water supplies, electric power and communications. | E31: Sum | F31: 1
B33: 1.1.12 | C33: A 8.3.2.2 | D33: (e) Dealing with water. | E33: Sum | F33: 1
B35: 1.1.13 | C35: A 8.3.2.2 | D35: (f) Access. | E35: Sum | F35: 1
B37: 1.1.14 | C37: A 8.3.2.2 | D37: (j) Plant. | E37: Sum | F37: 1
D39: Other Fixed-charge Obligations:
B41: 1.1.15 | C41: A 8.3.3 | D41: Survey, setting out and preparation of as-built drawings. | E41: Sum | F41: 1
B43: 1.1.16 | C43: A 8.3.3 | D43: Soil testing equipment. | E43: Sum | F43: 1
B45: 1.1.17 | C45: A 8.3.3 | D45: Environmental management. | E45: Sum | F45: 1
B47: 1.1.18 | C47: A 8.3.3 | D47: Occupational Health and Safety. | E47: Sum | F47: 1
B49: 1.1.19 | C49: A 8.3.3 | D49: Items in terms of the Industrial Relations Act and Employment conditions for tender purposes. | E49: Sum | F49: 1
D51: Removal of site establishment:
B53: 1.1.20 | C53: A.8.3.4 | D53: Removal of site establishment. | E53: Sum | F53: 1
D64: Carried to Collections
B66: Tender number: TNPA/2023/10/0005/44110/RFP Tender Description: Security Fencing Upgrade at the Port of East London
B70: Item No | C70: Payment Reference | D70: Description | E70: Unit | F70: Qty | G70: Rate | H70: Amount
C71: SANS 1200 | D71: SECTION 1: PRELIMINARIES AND GENERAL
D73: TIME RELATED ITEMS
D75: Contractual requirements:
B77: 1.1.21 | C77: A 8.4.1 | D77: Contractual requirements. | E77: Months | F77: 9
D79: Establishment of facilities for engineer:
B81: 1.1.22 | C81: A 8.4.2.1 | D81: (a) Furnished offices. | E81: Months | F81: 9
B83: 1.1.23 | C83: A 8.4.2.1 | D83: (b) Telephone. | E83: Months | F83: 9
B85: 1.1.24 | C85: A 8.4.2.1 | D85: (c) Nameboards. | E85: Months | F85: 9
D87: Establishment of Facilities for contractor:
B89: 1.1.26 | C89: A 8.4.2.2 | D89: (a) Offices and storage sheds. | E89: Months | F89: 9
B91: 1.1.27 | C91: A 8.4.2.2 | D91: (b) Workshops. | E91: Months | F91: 9
B93: 1.1.30 | C93: A 8.4.2.2 | D93: (c) Ablution and latrine facilities. | E93: Months | F93: 9
B95: 1.1.31 | C95: A 8.4.2.2 | D95: (d) Tools and equipment. | E95: Months | F95: 9
B97: 1.1.32 | C97: A 8.4.2.2 | D97: (e) Water supplies, electric power and communications. | E97: Months | F97: 9
B99: 1.1.33 | C99: A 8.4.2.2 | D99: (f) Dealing with water. | E99: Months | F99: 9
B101: 1.1.34 | C101: A 8.4.2.2 | D101: (g) Access. | E101: Months | F101: 9
B103: 1.1.35 | C103: A 8.4.2.2 | D103: (h) Plant. | E103: Months | F103: 9
D105: Supervision:
B107: 1.1.36 | C107: A 8.4.3 | D107: Supervision for the duration of Construction. | E107: Months | F107: 9
E108: Months
D109: Company and Head office Overhead Cost:
B111: 1.1.37 | C111: A 8.4.4 | D111: Company and Head office Overhead Cost for the duration for the contract. | E111: Months | F111: 9
D116: Carried to Collections
B118: Tender number: TNPA/2023/10/0005/44110/RFP Tender Description: Security Fencing Upgrade at the Port of East London
B121: Item No | C121: Payment Reference | D121: Description | E121: Unit | F121: Qty | G121: Rate | H121: Amount
D122: Other time related obligations:
B124: 1.1.38 | C124: A 8.4.5 | D124: Survey, setting out and preparation of as-built drawings. | E124: Months | F124: 9
B126: 1.1.40 | C126: A 8.4.5 | D126: Environmental management. | E126: Months | F126: 9
B128: 1.1.41 | C128: A 8.4.5 | D128: Occupational Health and Safety. | E128: Months | F128: 9
B130: 1.1.42 | C130: A 8.4.5 | D130: Items in terms of the Industrial Relations Act and Employment conditions for tender purposes. | E130: Months | F130: 9
D179: Carried to Collections
B181: Tender number: TNPA/2023/10/0005/44110/RFP Tender Description: Security Fencing Upgrade at the Port of East London
D184: COLLECTIONS
D186: SECTION NO. 1
D189: Page | F189: 1
D191: Page | F191: 2
D193: Page | F193: 3
D250: Total Collections Carried to Section Summary
F260: 1
F262: 2
F264: 3
F266: 4
F272: 8
F274: 9
F276: 10
F278: 11

Sheet BOQ
C2: Tender number: TNPA/2023/10/0005/44110/RFP Tender Description: Security Fencing Upgrade at the Port of East London
A4: Page | B4: Item No | C4: Payment Reference | D4: Description | E4: Unit | F4: Qty | G4: Rate | H4: Amount
H5: =G5*F5 -> R 0.00
D6: SECTION NO. 2 : SECURITY FENCE (PROVISIONAL) | H6: =G6*F6 -> R 0.00
H7: =G7*F7 -> R 0.00
D9: DEMOLITIONS ETC (PROVISIONAL)
D11: Taking down and removing
B13: 1 | D13: 2,4 m high Steel Pallisade Fencing including breaking removing any concrete bases then backfill and make good | E13: m | F13: 16.73
B15: 2 | D15: 2,4 m high Precast concrete fencing including removing all foundations comple | E15: m | F15: 255.00
B17: 3 | D17: 2,4 m high Mesh fencing including removing all foundations complete | E17: m | F17: 3,500.00
B19: 4 | D19: 2,4 m high Facebrick Fence including removing all foudantions complete | E19: m | F19: 200.00
D21: SITE CLEARANCE ETC
D23: Site clearance
B25: 5 | D25: Digging up and removing rubbish, debris, vegetation, hedges, shrubs, bush, etc. and trees not exceeding 200mmm girth and cart away to prescribed stock piles on site within 3.5km radius | E25: m² | F25: 100,354.00
B27: 6 | D27: Stripping average 150mm thick layer of topsoil and depositing material in prescribed stock piles on site within 3.5km radius | E27: m² | F27: =F25*10% -> 10,035.40
D29: EXCAVATION, FILLING, ETC.
D31: EXCAVATIONS, ETC
D33: Excavation in earth not exceeding 2m deep including shaping and trimming for
B35: 7 | D35: Plinths | E35: m³ | F35: 1,298.30
N36: Gate poles
B37: 8 | D37: Bases | E37: m³ | F37: =(PERIMETER!C16*0.4*0.4*0.75)+('INTERNAL '!C19*0.4*0.4*0.75)+(PERIMETER!C17*0.4*0.4*0.9)+('INTERNAL '!C20*0.4*0.4*0.4)+(PERIMETER!C18*0.4*0.4*0.9) -> 597.61 | N37: No of Poles
D39: Extra over trench and hole excavations in earth for excavation in
B41: 9 | D41: Soft rock | E41: m³ | F41: 327.44
B43: 10 | D43: Hard rock | E43: m³ | F43: 163.72
D45: Extra over all excavation for carting away
B47: 11 | D47: Surplus material from excavations to prescribed stock piles on site within 3.5km radius | E47: m³ | F47: =SUM(F34:F39) -> 1,895.91
D50: Carried to Collections
D52: Risk of collapse of excavations
B54: 12 | D54: Sides of trench and hole excavations not exceeding 1,5m deep | E54: m² | F54: 48,686.29
D56: UNREINFORCED CONCRETE CAST IN EXCAVATED SURFACES
D58: 25 MPa/19mm Concrete
B60: 13 | D60: Plinths | E60: m³ | F60: 1,298.30
B62: 14 | D62: Bases | E62: m³ | F62: =F37 -> 597.61
D64: TEST CUBES
B66: 15 | D66: Making and testing 150 x 150 x 150mm concrete strength test cubes, 3 cubes per load | E66: No. | F66: =(SUM(F59:F62)/6)*3 -> 948
D68: ROUGH FORMWORK (PROVISIONAL)
D70: Rough Formwork to:
B72: 16 | D72: Sides of plinths | E72: m² | F72: 6,491.51
D74: FENCING, GATES, ETC (PROVISIONAL)
D76: Steel Weld Mesh Fence
B78: 17 | D78: Supply, deliver and install complete including 3,82 m high Intermwdiate posts, 3,00 m High Reinforced Steel Welded Mesh Fence comprising of Bonded Mesh Fence 2,70 m high and 300 mm high Electric Razor Wire added to the top of fence (Galvenised to suit Marine Conditions) | E78: m | F78: =PERIMETER!C5 -> 9,396
B80: 18 | D80: Supply, deliver and install complete including 3,82 m high Gate Posts, 2,7 m High Reinforced Steel Welded Mesh Fence Automated Sliding Gate 9,9 m wide comprising of Bonded Mesh Fence and 300 mm high Electric Razor Wire added to the top of fence (Galvenised to suit Marine Conditions) | E80: No | F80: 3
B82: 19 | D82: Supply, deliver and install complete including 3,82 m high Gate Posts 2,7 m High Reinforced Steel Welded Mesh Fence Sliding Gate 8,49 m wide comprising of Bonded Mesh Fence and 300 mm high Electric Razor Wire added to the top of fence (Galvenised to suit Marine Conditions) | E82: No | F82: 1
B84: 20 | D84: Supply, deliver and install complete including 3,82m Gate Posts, 2,7 m High Reinforced Steel Welded Mesh Fence Atomated Sliding Gate 7,55 m wide comprising of Bonded Mesh Fence and 300 mm high Electric Razor Wire added to the top of fence (Galvenised to suit Marine Conditions) | E84: No | F84: 1
B86: 21 | D86: Supply, deliver and install complete including 3,82 m high Gate Posts, 2,7 m High Reinforced Steel Welded Mesh Fence Sliding Gate 6,2 m wide comprising of Bonded Mesh Fence and 300 mm high Electric Razor Wirel added to the top of fence (Galvenised to suit Marine Conditions) | E86: No | F86: 1
D88: Carried to Collections
B90: 22 | D90: Supply, deliver and install complete including 3,82 m high Gate Posts, new 2,7 m High Reinforced Steel Welded Mesh Fence Automated Double Leaf Swing Gate 6 m wide comprising of Bonded Mesh Fence and 300 mm high Electric Razor Wire added to the top of fence (Galvenised to suit Marine Conditions) | E90: No | F90: 1
B92: 23 | D92: Supply,deliver and install complete including 3,82 m high Gate Posts, 2,7 m High Reinforced Steel Welded Mesh Fence Double Leaf Swing Gate 8,6 m wide comprising of Bonded Mesh Fence and 300 mm high Electric Razor Wirel added to the top of fence (Galvenised to suit Marine Conditions) | E92: No | F92: 1
B94: 24 | D94: Supply,deliver and install complete including Gate Posts new 2,7 m High Reinforced Steel Welded Mesh Fence Double Leaf Swing Gate 5,8 m wide comprising of Bonded Mesh Fence and 300 mm high Electric Razor Wire added to the top of fence (Galvenised to suit Marine Conditions) | E94: No | F94: 2
B96: 25 | D96: Supply,deliver and install complete including Gate Posts new 2,7 m High Reinforced Steel Welded Mesh Fence Double Leaf Swing Gate 5,78 m wide comprising of Bonded Mesh Fence and 300 mm high Electric Razor Wirel added to the top of fence (Galvenised to suit Marine Conditions) | E96: No | F96: 1
B98: 26 | D98: Supply,deliver and install complete including Gate Posts new 2,7 m High Reinforced Steel Welded Mesh Fence Double Leaf Swing Gate 4,59 m wide comprising of Bonded Mesh Fence and 300 mm high Electric razor Wire added to the top of fence (Galvenised to suit Marine Conditions) | E98: No | F98: 1
B100: 27 | D100: Supply,deliver and install complete including Gate Posts new 2,7 m High Reinforced Steel Welded Mesh Fence Double Leaf Swing Gate 4,2 m wide comprising of Bonded Mesh Fence and 300 mm high Electric razor Wire added to the top of fence (Galvenised to suit Marine Conditions) | E100: No | F100: 1
B102: 28 | D102: Supply,deliver and install complete including Gate Posts new 2,7 m High Reinforced Steel Welded Mesh Fence Double Leaf Swing Gate 2,9 m wide comprising of Bonded Mesh Fence and 300 mm high Electric Razor Wirel added to the top of fence (Galvenised to suit Marine Conditions) | E102: No | F102: 1
B104: 29 | D104: Supply, deliver and install complete including 3,00 m high Intermwdiate posts new 2,4 m High Reinforced Steel Welded Mesh Fence comprising of Bonded Mesh Fence 2,4 m high with Spikes added to the top | E104: m | F104: ='INTERNAL '!C5 -> 6,833
B106: 30 | D106: Supply, deliver and install complete including Gate Posts new 2,4 m High Reinforced Steel Welded Mesh Fence Automated Sliding Gate 10 m wide comprising of Bonded Mesh Fence with Spikes added to the top of fence | E106: No | F106: 2
B108: 31 | D108: Supply, deliver and install complete including Gate Posts new 2,4 m High Reinforced Steel Welded Mesh Fence Automated Sliding Gate 9 m wide comprising of Bonded Mesh Fence with Spikes added to the top of fence | E108: No | F108: 2
D110: Carried to Collections
B112: 32 | D112: Supply, deliver and install complete including 3,00 m high Gate Posts, 2,4 m High Reinforced Steel Welded Mesh Fence Sliding Gate 9 m wide comprising of Bonded Mesh Fence with Spikes added to the top of fence | E112: No | F112: 1
B114: 33 | D114: Supply, deliver and install complete including 3,00 m high Gate Posts, 2,4 m High Reinforced Steel Welded Mesh Fence Automated Sliding Gate 8,3 m wide comprising of Bonded Mesh Fence with Spikes added to the top of fence | E114: No | F114: 1
B116: 34 | D116: Supply, deliver and install complete including 3,00 m high Gate Posts, 2,4 m High Reinforced Steel Welded Mesh Fence Automated Sliding Gate 8 m wide comprising of Bonded Mesh Fence with Spikes added to the top of fence | E116: No | F116: 1
B118: 35 | D118: Supply, deliver and install complete including 3,00 m high Gate Posts, 2,4 m High Reinforced Steel Welded Mesh Fence Sliding Gate 6,52 m wide comprising of Bonded Mesh Fence with Spikes added to the top of fence | E118: No | F118: 2
B120: 36 | D120: Supply, deliver and install complete including 3,00 m high Gate Posts, 2,4 m High Reinforced Steel Welded Mesh Fence Sliding Gate 6 m wide comprising of Bonded Mesh Fence with Spikes added to the top of fence | E120: No | F120: 1
B122: 37 | D122: Supply, deliver and install complete including 3,00 m high Gate Posts,2,4 m High Reinforced Steel Welded Mesh Fence Automated double Swing Gate 5,9 m wide comprising of Bonded Mesh Fence with Spikes added to the top of fence | E122: No | F122: 1
B124: 38 | D124: Supply, deliver and install complete including 3,00 m high Gate Posts, 2,4m High Reinforced Steel Welded Mesh Fence Automated Sliding Gate 5,86 m wide comprising of Bonded Mesh Fence with Spikes added to the top of fence | E124: No | F124: 1
B126: 39 | D126: Supply, deliver and install complete including 3,00 m high Gate Posts, 2,4 m High Reinforced Steel Welded Mesh Fence Automated Sliding Gate 4,99 m wide comprising of Bonded Mesh Fence with Spikes added to the top of fence | E126: No | F126: 1
B128: 40 | D128: Supply, deliver and install complete including 3,00 m high Gate Posts, 2,4 m High Reinforced Steel Welded Mesh Fence Automated Sliding Gate 4,2 m wide comprising of Bonded Mesh Fence with Spikes added to the top of fence | E128: No | F128: 1
B130: 41 | D130: Supply,deliver and install complete including 3,00 m high Gate Posts, 2,4 m High Reinforced Steel Welded Mesh Fence Double Leaf Swing Gate 9,7 m wide comprising of Bonded Mesh Fence with Spikes added to the top of fence | E130: No | F130: 1
B132: 42 | D132: Supply,deliver and install complete including 3,00 m high Gate Posts new 2,4 m High Reinforced Steel Welded Mesh Fence Double Leaf Swing Gate 8,8 m wide comprising of Bonded Mesh Fence with Spikes added to the top of fence | E132: No | F132: 1
D133: Carried to Collections
B135: 43 | D135: Supply,deliver and install complete including 3,00 m high Gate Posts new 2,4 m High Reinforced Steel Welded Mesh Fence Double Leaf Swing Gate 7,57 m wide comprising of Bonded Mesh Fence with Spikes added to the top of fence | E135: No | F135: 1
B137: 44 | D137: Supply,deliver and install complete including 3,00 m high Gate Posts new 2,4 m High Reinforced Steel Welded Mesh Fence Double Leaf Swing Gate 6,9 m wide comprising of Bonded Mesh Fence with Spikes added to the top of fence | E137: No | F137: 1
B139: 45 | D139: Supply,deliver and install complete including 3,00 m high Gate Posts new 2,4 m High Reinforced Steel Welded Mesh Fence Double Leaf Swing Gate 6,87 m wide comprising of Bonded Mesh Fence with Spikes added to the top of fence | E139: No | F139: 1
B141: 46 | D141: Supply,deliver and install complete including 3,00 high Gate Posts, 2,4 m High Reinforced Steel Welded Mesh Fence Double Leaf Swing Gate 6 m wide comprising of Bonded Mesh Fence with Spikes added to the top of fence | E141: No | F141: 2
B143: 47 | D143: Supply,deliver and install complete including3,00 m high Gate Posts new 2,4 m High Reinforced Steel Welded Mesh Fence Double Leaf Swing Gate 5,8m wide comprising of Bonded Mesh Fence with Spikes added to the top of fence | E143: No | F143: 2
B145: 48 | D145: Supply,deliver and install complete including 3,00 m Gate Posts new 2,4 m High Reinforced Steel Welded Mesh Fence Double Leaf Swing Gate 5,71m wide comprising of Bonded Mesh Fence with Spikes added to the top of fence | E145: No | F145: 1
B147: 49 | D147: Supply,deliver and install complete including 3,00 m high Gate Posts new 2,4 m High Reinforced Steel Welded Mesh Fence Double Leaf Swing Gate 5,6 m wide comprising of Bonded Mesh Fence with Spikes added to the top of fence | E147: No | F147: 2
B149: 50 | D149: Supply,deliver and install complete including 3,00 m high Gate Posts, 2,4 m High Reinforced Steel Welded Mesh Fence Double Leaf Swing Gate 5,48 m wide comprising of Bonded Mesh Fence with Spikes added to the top of fence | E149: No | F149: 1
B151: 51 | D151: Supply,deliver and install complete including Gate Posts new 2,4 m High Reinforced Steel Welded Mesh Fence Double Leaf Swing Gate 4,8 m wide comprising of Bonded Mesh Fence with Spikes added to the top of fence | E151: No | F151: 1
B153: 52 | D153: Supply,deliver and install complete including 3,00 m high Gate Posts, 2,4 m High Reinforced Steel Welded Mesh Fence Double Leaf Swing Gate 4,5 m wide comprising of Bonded Mesh Fence with Spikes added to the top of fence | E153: No | F153: 2
B155: 53 | D155: Supply,deliver and install complete including 3,00 m high Gate Posts, 2,4 m High Reinforced Steel Welded Mesh Fence Double Leaf Swing Gate 4,3 m wide comprising of Bonded Mesh Fence with Spikes added to the top of fence | E155: No | F155: 1
D157: Carried to Collections
B159: 54 | D159: Supply,deliver and install complete including 3,00 m high Gate Posts, 2,4 m High Reinforced Steel Welded Mesh Fence Double Leaf Swing Gate 4 m wide comprising of Bonded Mesh Fence with Spikes added to the top of fence | E159: No | F159: 1
B161: 55 | D161: Supply,deliver and install complete including 3,00 m high Gate Posts, 2,4 m High Reinforced Steel Welded Mesh Fence Double Leaf Swing Gate 3,66 m wide comprising of Bonded Mesh Fence with Spikes added to the top of fence | E161: No | F161: 1
B163: 56 | D163: Supply,deliver and install complete including 3,00 mm high Gate Posts,2,4 m High Reinforced Steel Welded Mesh Fence Double Leaf Swing Gate 3 m wide comprising of Bonded Mesh Fence with Spikes added to the top of fence | E163: No | F163: 2
B165: 57 | D165: Supply,deliver and install complete including 3,00 m high Gate Posts, 2,4 m High Reinforced Steel Welded Mesh Fence Pedestrian Gate 1,7 m wide comprising of Bonded Mesh Fence with Spikes added to the top of fence | E165: No | F165: 2
B167: 58 | D167: Supply,deliver and install complete including 3,00 high Gate Posts, 2,4 m High Reinforced Steel Welded Mesh Fence Pedestrian Gate 1,7 m wide comprising of Bonded Mesh Fence with Spikes added to the top of fence | E167: No | F167: 2
B169: 59 | D169: Supply,deliver and install complete including 3,00 m high Gate Posts, 2,4 m High Reinforced Steel Welded Mesh Fence Pedestrian Gate 1,14 m wide comprising of Bonded Mesh Fence with Spikes added to the top of fence | E169: No | F169: 2
B171: 60 | D171: Supply,deliver and install complete including 3,00 m high Gate Posts new 2,4 m High Reinforced Steel Welded Mesh Fence Pedestrian Gate 1 m wide comprising of Bonded Mesh Fence with Spikes added to the top of fence | E171: No | F171: 2
D173: High-Security Large Panel Wall
B175: 61 | D175: Supply and erect new 3.6 m high concrete panel perimeter secuirty fence including the accessories, anti-climb, anti-burrow, etc, as per the typical drawings | E175: m | F175: =PERIMETER!C6 -> 497
D177: Padlocks
B179: 68 | D179: Provide padlocks with long shackles and keys as per Drawing No. XELE00014-C-DE-0001-02-0A. | E179: No | F179: 54
D181: Turnstile
D183: Remove and Store for Re-Use 2.4m high turnstile complete with all the fittings. | E183: No | F183: 6
D185: Supply, deliver and install a 2.4m high turnstile complete with all the fittings. | E185: No | F185: 6
D190: Carried to Collections
D193: COLLECTIONS
D195: SECTION NO. 2
D201: Page | F201: 5
D203: Page | F203: 6
D205: Page | F205: 7
D207: Page | F207: 8
D209: Page | F209: 9
D211: Page | F211: 10
D238: Total Collections Carried to Section Summary

Sheet Sheet1 (hidden)

Sheet PERIMETER (hidden)
B3: CAD MEASUREMENTS | C3: DISTANCE | D3: UNITS
B5: MESH FENCE | C5: =63.74733+421.13859+1079.37987+8.84032+1071.63976+29.53055+1.13553+78.36768+0.59424+0.65149+10.75625+122.53615+337.91978+0.22671+0.44815+70.50533+213.4842+304.33413+50.25525+70.99909+83.69451+146.48879+22.96352+173.86365+36.68808+22.39569+194.79996+6.47028+12.91092+38.61716+246.53591+4.25233+214.07689+34.01007+133.60142+109.21712+29.37345+31.47088+96.33785+157.47641+2.20522+2.29891+2.44546+198.17779+478.7641+122.73166+367.64583+218.85671+52.81412+180.55067+16.22396+24.6463+36.19183+55.47299+25.29407+41.3954+117.92321+243.14966+460.58924+33.01387+21.74897+4.12635+3.06585+277.36007+156.44927+39.011+2.96362+45.24257+24.27105+9.70938+102.28701+0.67046+0.78992+2.11749+99.8151+31.88762+104.95066+57.54234 -> 9396.13502 | D5: m
B6: CONCRETE WALL | C6: =180.62553+1.35616+10.70647+50.44849+148.78912+105.00247 -> 496.92824 | D6: m
B7: SWING GATES | C7: 14 | D7: no
B8: SLIDING GATES | C8: 3 | D8: no
B11: total length of fence | C11: =C5+C6 -> 9893.06326 | D11: m | E11: =C11/1000 -> 9.89306326 | F11: km
B12: clear - 6*9893.06326 | C12: =C11*6 -> 59358.37956 | D12: m2 | E12: =C12/10000 -> 5.935837956 | F12: ha | G12: assume 6m wide strips
B13: take down | C13: =E11 -> 9.89306326 | D13: km
B14: MESH | C14: =C5 -> 9396.13502 | D14: M
B15: CONCRETE | C15: =C6 -> 496.92824 | D15: M
B16: MESH fence poles | C16: =C14/3.39+1 -> 2772.721245 | D16: no
B17: Gate poles | C17: =(C7*2)+(C8*3) -> 37 | D17: no
B18: CONCRET POLES | C18: =C6/5 -> 99.385648 | D18: NO
B19: MESH fence poles | C19: =C16*0.6*0.4 -> 665.4530988 | D19: M3
B20: Gate poles | C20: =C17*0.4*1.2 -> 17.76 | D20: M3
B21: CONCRET POLES | C21: =C18*0.9*1.2 -> 107.3364998 | D21: M3
B22: plinth-400*200 | C22: =(C11*0.4*0.2)-(C19-C20-C21) -> 251.0884619 | D22: M3
B23: TOTAL EVA. | C23: =SUM(C19:C22) -> 1041.63806

Sheet INTERNAL (hidden)
B3: CAD MEASUREMENTS
B5: MESH FENCE | C5: =12.22128+5.85349+6.13151+531.68731+9.50687+3.10896+8.41316+22.1572+52.58038+92.8243+118.71202+4.0841+1.56841+18.0625+5.21519+10.8935+62.6295+74.60521+4.54603+7.24424+7.81121+19.05787+158.0083+35.958+259.67162+46.59915+375.00939+231.91567+6.35037+5.24024+72.23237+102.6533+0.9102+74.82385+98.61622+14.40974+8.9735+5.73526+4.24248+2.99138+3.14032+4.98091+20.08704+100.92313+359.17861+23.15248+159.4503+325.38913+11.01326+31.06229+20.22568+77.18396+25.88776+25.88776+2.26341+73.06955+48.48006+56.18225+84.29817+18.62191+18.12313+3.60424+1.14608+64.52159+10.0275+3.41238+2.33009+41.73778+72.67128+75.06976+305.21081+59.88674+15.48651+40.68073+78.38517+119.39749+60.1938+117.99498+47.19209+1.80077+0.87772+50.13927+30.66278+21.94614+297.99479+76.61396+62.14974+165.28279+22.09131+38.49214+83.874+183.81133+101.99201+12.35141+12.47276+7.34115+25.26952+2.38367+39.15873+4.99961+21.0646+40.32974+13.36446+325.36004 -> 6832.62985 | D5: m
B6: CONCRETE WALL | D6: m
B7: SWING GATES | C7: 7 | D7: no
B8: SLIDING GATES | C8: 7 | D8: no
B9: PED GATE | C9: 2 | D9: no
B10: TURNSTILE GATE | C10: 6 | D10: no
B14: total length of fence | C14: =C5+C6 -> 6832.62985 | D14: m | E14: =C14/1000 -> 6.83262985 | F14: km
B15: clear - 6*9893.06326 | C15: =C14*6 -> 40995.7791 | D15: m2 | E15: =C15/10000 -> 4.09957791 | F15: ha | G15: assume 6m wide strips
B16: take down | C16: =E14 -> 6.83262985 | D16: km
B17: MESH | C17: =C5 -> 6832.62985 | D17: M | G17: =F17+C19 -> 2016.525029
B18: CONCRETE | C18: =C9 -> 2 | D18: M
B19: MESH fence poles | C19: =C17/3.39+1 -> 2016.525029 | D19: no
B20: Gate poles | C20: =(C7*2)+(C8*3)+(C9*2)+(C10*2) -> 51 | D20: no
B21: CONCRET POLES | C21: =C6/5 -> 0 | D21: NO
B22: MESH fence poles | C22: =C19*0.6*0.4 -> 483.9660071 | D22: M3
B23: Gate poles | C23: =C20*0.4*1.2 -> 24.48 | D23: M3 | L23: =0.4*0.2*10000 -> 800
B24: CONCRET POLES | C24: =C21*0.9*1.2 -> 0 | D24: M3
B25: plinth-400*200 | C25: =(C14*0.4*0.2)-(C22-C23-C24) -> 87.12438092 | D25: M3
B26: TOTAL EVA. | C26: =SUM(C22:C25) -> 595.570388 | D26: M3

Sheet Measured works (hidden)
A3: Item | B3: Payment ref. | C3: Description | D3: Unit | E3: Quantity | F3: Rate | G3: Amount
B5: SANS 1200 C | C5: Site Clearance
B7: 8.2.3 | C7: Remove and grub large trees and tree stumps of girth | D7: ha | E7: =PERIMETER!E12+'INTERNAL '!E15 -> 10.04 | G7: =F7*E7 -> 0
B9: 8.2.5 | C9: Take down existing fence | D9: km | E9: =PERIMETER!E11+'INTERNAL '!E14 -> 16.73 | G9: =F9*E9 -> 0
B11: SANS 1200D | C11: Earthworks
B13: 8.3.1 | C13: Site Prepaparation
B14: 8.3.1.1 | C14: Clear and strip site | D14: m2 | E14: =PERIMETER!C12+'INTERNAL '!C15 -> 100354.16 | G14: =F14*E14 -> 0
B16: 8.3.3 | C16: Restricted Excavation
B17: a) | C17: Excavate for restricted foudations, footings and pipe trenchs in all materials and use for backfill or dispose. | D17: m3 | E17: =PERIMETER!C23+'INTERNAL '!C26 -> 1637.21 | G17: =F17*E17 -> 0
B18: b) | C18: Extra-over for
B19: 1) | C19: intermediate excavation | D19: m3 | E19: =E17*0.2 -> 327.44 | G19: =F19*E19 -> 0
B20: 2) | C20: hard rock excavation | D20: m3 | E20: =E17*0.1 -> 163.72 | G20: =F20*E20 -> 0
B23: SANS | C23: Fence
C24: Steel Weld Mesh Fence
C26: 1500 x 1800m swing pedestrian gate including Union 3122 or similar approved padlock (Internal) | D26: no | E26: ='INTERNAL '!C9 -> 2 | G26: =F26*E26 -> 0
C28: 4500 x 1800m swing double leaf vehicle gate including Union 3122 or similar approved padlock (Internal) | D28: no | E28: ='INTERNAL '!C7 -> 7.00 | G28: =F28*E28 -> 0
C30: 4500 x 2900m swing double leaf vehicle gate including Union 3122 or similar approved padlock (Perimeter) | D30: no | E30: =PERIMETER!C7 -> 14.00
C32: 4500 x 1800m sliding vehicle gate including Union 3122 or similar approved padlock (Internal) | D32: no | E32: ='INTERNAL '!C8 -> 7.00 | G32: =F32*E32 -> 0
C34: 4500 x 2700m sliding vehicle gate including Union 3122 or similar approved padlock (Perimter) | D34: no | E34: =PERIMETER!C8 -> 3.00 | G34: =F34*E34 -> 0
C36: 1500 x 1800mm turnstile gate | D36: no | E36: ='INTERNAL '!C10 -> 6.00 | G36: =F36*E36 -> 0
C38: Supply and erect new 2.7 m high mesh perimeter secuirty fence including the accessories, anti-climb, anti-burrow, etc, as per the typical drawings | D38: m | E38: =PERIMETER!C14 -> 9,396.14 | G38: =F38*E38 -> 0
C40: Supply and erect new 1.8 m high mesh internal secuirty fence including the accessories as per the typical drawings | D40: m | E40: ='INTERNAL '!C17 -> 6,832.63 | G40: =F40*E40 -> 0
C42: High-Security Large Panel Wall
C44: Supply and erect new 3.6 m high concrete panel perimeter secuirty fence including the accessories, anti-climb, anti-burrow, etc, as per the typical drawings | D44: m | E44: =PERIMETER!C15 -> 496.93 | G44: =F44*E44 -> 0
G48: =SUM(G4:G46) -> 0

Sheet MEASURED GATES (PARAMETE) (hidden)
A1: NAMES | B1: LENGTH | C1: UNITS | D1: GATE TYPE
A2: FORESHORE GATES | B2: 2.9 | C2: M | D2: SWING GATE | G2: AUTOMATIC
A3: WEST BANK MAIN ENTRANCE | B3: 8.6 | C3: M | D3: SWING GATE | G3: NON-AUTOMATIC
A4: ENTRANCE TO BLACK TANK | B4: 5.78 | C4: M | D4: SWING GATE
A5: DR ZAHN RAIL WAY GATE | B5: 5.8 | C5: M | D5: SWING GATE
A6: DR ZAHN GATE | B6: 4.59 | C6: M | D6: SWING GATE
A7: EMD BUILDING | B7: 5.8 | C7: M | D7: SWING GATE
A8: ELBA | B8: 4.2 | C8: M | D8: SWING GATE
A9: SEA SPIRIT MAIN ENTRANCE | B9: 6 | C9: M | D9: SLIDING GATE | H9: NOTE: SWING GATE | I9: SWING GATE TO DIVIDE BY TWO TO GET SINGLE SWING GATE LENGTH
A10: PONTOON MAIN ENTRANCE | B10: 8.49 | C10: M | D10: SLIDING GATE
A11: PORT CONTROL ENTRANCE | B11: 7.55 | C11: M | D11: SLIDING GATE
A12: TPT ONTAINER TERMINAL | B12: 9.9 | C12: M | D12: SLIDING GATE
A13: TPT ONTAINER TERMINAL | B13: 9.9 | C13: M | D13: SLIDING GATE
A14: TPT BEHIND COMBI BUILDING | B14: 6.2 | C14: M | D14: SLIDING GATE

Sheet MEASURED GATES (INTERNAL) (hidden)
A1: NAMES | B1: LENGTH | C1: UNITS | D1: GATE TYPE
A2: GANTEAUME CRESCENT PEDESTRIAN GATE | B2: 1.6 | C2: M | D2: PEDESTRIAN GATE | G2: AUTOMATIC
A3: GANTEAUME CRESCENT PEDESTRIAN GATE | B3: 5.8 | C3: M | D3: SWING GATE | G3: NON-AUTOMATIC
A4: PORT ADMIN | B4: 6.9 | C4: M | D4: SWING GATE
A5: PORT ADMIN | B5: 5.71 | C5: M | D5: SWING GATE
A6: PORT ADMIN | B6: 1.1 | C6: M | D6: PEDESTRIAN GATE
A7: EAST LONDON YACHT CLUB | B7: 4.2 | C7: M | D7: SLIDING GATE
A8: TRAINING COLLEGE FRONT GATE | B8: 3.66 | C8: M | D8: SWING GATE
A9: HELY HUTCHINSON ROAD | B9: 5.9 | C9: M | D9: SLIDING GATE | H9: NOTE: SWING GATE | I9: SWING GATE TO DIVIDE BY TWO TO GET SINGLE SWING GATE LENGTH
A10: DRY DOCK NEXT TO SUBSTATION | B10: 8 | C10: M | D10: SLIDING GATE
A11: POLICE STATION INSIDE GATE | B11: 4.99 | C11: M | D11: SLIDING GATE
A12: DRY DOCK MAIN ENTRANCE | B12: 7.57 | C12: M | D12: SWING GATE
A13: ADDITIONAL GATE NEAR DR DOCK | B13: 4.8 | C13: M | D13: SWING GATE
A14: POLICE STATION INSIDE GATE | B14: 5.86 | C14: M | D14: SLIDING GATE
A15: POLICE STATION INSIDE GATE | B15: 5.8 | C15: M | D15: SWING GATE
A16: PORT REX FIRE BUILDING | B16: 4.3 | C16: M | D16: SWING GATE
A17: BUFFALO RIVER YACHT CLUB | B17: 4 | C17: M | D17: SWING GATE
A18: BUFFALO RIVER YACHT CLUB | B18: 1 | C18: M | D18: PEDESTRIAN GATE
A19: BUFFALO RIVER YACHT CLUB | B19: 1 | C19: M | D19: PEDESTRIAN GATE
A20: BUFFALO RIVER YACHT CLUB | B20: 6 | C20: M | D20: SLIDING GATE
A21: FORESHORE SERVICE | B21: 3.02 | C21: M | D21: SWING GATE
A22: FORESHORE SERVICE | B22: 3 | C22: M | D22: SWING GATE
A23: ENTRANCE AT FORESHORE GRAIN SILO | B23: 5.5 | C23: M | D23: SWING GATE
A24: FORESHORE SERVICE | B24: 6.52 | C24: M | D24: SLIDING GATE
A25: FORESHORE SERVICE | B25: 9.7 | C25: M | D25: SWING GATE
A26: FORESHORE SERVICE | B26: 5.6 | C26: M | D26: SWING GATE
A27: FORESHORE SERVICE | B27: 6.87 | C27: M | D27: SWING GATE
A28: MBSA ENTRANCE | B28: 5.48 | C28: M | D28: SWING GATE
A29: MBSA ENTRANCE | B29: 10 | C29: M | D29: SLIDING GATE
A30: MBSA ENTRANCE | B30: 4.5 | C30: M | D30: SWING GATE
A31: MBSA ENTRANCE | B31: 9 | C31: M | D31: SLIDING GATE
A32: CAR STATIONING OPPOSITE MBSA ENTRANCE | B32: 10 | C32: M | D32: SLIDING GATE
A33: CAR STATIONING OPPOSITE MBSA ENTRANCE | B33: 8.8 | C33: M | D33: SWING GATE
A34: C-BERTH ENTRANCE | B34: 6.52 | C34: M | D34: SLIDING GATE
A35: C-BERTH ENTRANCE | B35: 1.14 | C35: M | D35: PEDESTRAIN GATE
A36: C-BERTH ENTRANCE | B36: 6 | C36: M | D36: SWING GATE
A37: C-BERTH ENTRANCE | B37: 1.7 | C37: M | D37: PEDESTRAIN GATE
A38: QUAY 3&4 ENTRANCES | B38: 6 | C38: M | D38: SWING GATE
A39: QUAY 3&4 ENTRANCES | B39: 8.3 | C39: M | D39: SLIDING GATE
A40: CONTAINER TERMINAL ENTRANCE | B40: 9 | C40: M | D40: SLIDING GATE
A41: CONTAINER TERMINAL ENTRANCE | B41: 4.4 | C41: M | D41: SWING GATE
